Workbook

Sheet SABC-LIFTS_ESC_BOQ_PRICED
A1: THE APPOINTMENT OF A CONTRACTOR TO UPGRADE LIFTS AND ESCALATORS AT THE SABC AUCKLAND PARK OFFICES FOR FIVE (05) YEARS WITH FIVE (5) YEAR MAINTENANCE PLAN
A2: TENDER ESTIMATE RFP/LOG/2023/18
A4: ITEM NO. | B4: DESCRIPTION | C4: UNIT | D4: QUANTITY | E4: RATE | F4: AMOUNT
B5: BILL NO. 1
B7: PRELIMINARIES (CPAP Work Group No. 190 Unless Otherwise Stated)
B9: MEANING OF TERMS "TENDER / TENDERER"
B11: Any reference to the words "Tender" or Tenderer" herein and/or in any other documentation shall be constructed to have the same meaning as the words "Bid" or "Bidder"
B13: PRELIMINARIES
B15: JBCC Principal Building Agreement Edition 5.0 (Reprint) Code 2101, July 2007 is taken to be incorporated herein. The tenderer is deemed to have referred to these documents for the full intent and meaning of each clause. These clauses are referred to by number and heading only. Where standard clauses or options are not applicable to the contractor such modifications or connections as are necessary are given under relevant clause. Where an item is not relevant to this specific contract such item is marked."N/A" signifying "Not Applicable"
B17: PRICING OF PRELIMINARIES
B19: The contractor is deemed to have referred to the above mentioned document for full intent and meaning of each clause. Should Option A, as set out in clause B10.3.1 hereinafter be used for the adjustment of preliminaries then each item priced is to be allocated to one or more of the three categories Fixed, Value Related or Time Related and the respective amounts entered in the spaces provide under each item
B21: Items not priced in these Preliminaries shall be deemed to be included elsewhere in these Bills of Quantities
B23: SECTION A: JBCC PRINCIPAL BUILDING AGREEMENT (Edition 5.0 CODE 2101 July 2007)
B25: DEFINITIONS
B27: A1.0 DEFINITIONS AND INTERPRETATION
B29: Clause 1.0 Clause
B31: ADJUDICATOR: The person appointed by the parties to decide any dispute arising out of this agreement
B33: ADVANCE PAYMENT GUARANTEE: A guarantee at call obtained by the contractor from an institution approved by the employer on the JBCC Advance Payment Guarantee form in the amount as stated in the contract data
B35: AGENT: A party named in the contract data and/or appointed by the employer to deal with specific aspects of the works
B37: AGREEMENT: This JBCC Principal Building Agreement and other contract documents that together form the contract between the parties
B39: ARBITRATOR: The person appointed by the parties to decide any dispute arising out of this agreement
B41: BILLS OF QUANTITIES: The document drawn up in accordance with the measuring system as stated in the contract data. The contractor shall have priced the document to reflect the contract sum
B43: BUDGETARY ALLOWANCE: A sum of money included in the contract sum for work intended for execution by the contractor, the extent of which is identified but not detailed
B45: CALENDAR DAYS: Twenty-four (24) hour days commencing at midnight (00:00) which include working and non-working days
B47: CERTIFICATE OF FINAL COMPLETION: A certificate issued by the principal agent to the contractor stating the date on which final completion of the works was achieved. CERTIFICATE OF PRACTICAL COMPLETION: A certificate issued by the principal agent to the contractor stating the date on which practical completion of the works was achieve. CERTIFICATE OF WORKS COMPLETION: A certificate issued by the principal agent to the contractor stating the date on which works completion of the works was achieved.
B49: CONSTRUCTION GUARANTEE: A guarantee at call obtained by the contractor from an institution approved by the employer in terms of the JBCC Construction Guarantee form as elected in the contract data.CONSTRUCTION PERIOD: The period commencing on the intended date as stated in the contract data that possession of the site shall be given to the contractor and ending on the date of practical completion.CONTRACTOR: The party contracting with the employer for the execution of the works as named in the contract data.CONTRACT DATA: The defined listed variables applicable to this agreement CONTRACT DOCUMENTS: This document. contract drawings, priced document and such other documents as are identified in the contract data.CONTRACT DRAWINGS: The drawings stated in the contract data upon which the accepted tender ornegotiated amount was based.
B51: CONTRACT INSTRUCTION: A written instruction which may include drawings and other construction information signed and issued by or under the authority of the principal agent to the contractor. CONTRACT SUM: The tender or negotiated amount, inclusive of tax, as accepted by the employer and stated in the contract data that is not subject to adjustment. CONTRACT VALUE: A monetary value that initially is equal to the contract sum that is subject to adjustment. CPAP: The JBCC Contract Price Adjustment Provisions used for the adjustment of the contract value as stated in the contract data. DEFECT: Any aspect of materials and workmanship Forming part of the works that, in the opinion of the principal agent, is due to the failure of the contractor to comply with his obligations in terms of the agreement.
B53: FINAL ACCOUNT: The document, prepared by the principal agent, which reflects the contract value of the works at final completion or termination. FINAL COMPLETION: The stage of completion where the works is free of all defects as certified by the principal agent. INTEREST: The bank rate that is applicable from time to time to registered banks when borrowing money from the Central or Reserve Bank of the country named in the contract data. The ruling bank rate on the first calendar day of each month shall be used in calculating the interest due for such month.
B55: MATERIALS AND GOODS: Materials and goods delivered to the contractor or his subcontractors for inclusion in the works whether stored on or off the site or in transit but not yet part of the works
B57: PARTY: The employer and/or contractor PAYMENT CERTIFICATE: A document issued monthly by the principal agent certifying the amount due and payable by the employer to the contractor or vice versa in terms of the JBCC Payment Certificate form. PAYMENT GUARANTEE: A guarantee in the amount as stated in the contract data obtained by the employer from an institution approved by the contractor in terms of the JBCC Payment Guarantee form. PENALTY: A monetary value determined at a rate per calendar day as stated in the contract data
B59: PRACTICAL COMPLETION: The stage of completion where the works or a section thereof, as certified by the principal agent, is substantially complete and can effectively be used for the purposes intended. PRICED DOCUMENT: Bills of quantities, schedule of rates or other documents as are appropriate to this agreement. PRIME COST AMOUNT: An amount included in the contract sum for the delivered cost of materials and goodsobtained from a supplier as instructed by the principal agent. PRINCIPAL AGENT: The party named in the contract data and/or appointed by the employer with full authority and obligation to act in terms of the agreement. PROGRAMME: A diagrammatic representation of the planned execution of units of work or events of the works indicating the dates for commencement and completion thereof. RECOVERY STATEMENT: The statement prepared monthly by the principal agent in terms of the JBCC Recovery Statement form. SECTION: A defined portion of the works for which practical completion is required on the date stated in the contract data that is earlier than that required for the works as a whole. SECURITY: The form of guarantee provided by the employer or contractor, as stated in the contract data, from which a party may recover expense and loss in the event of default
B61: WORKING DAYS: Twenty-four (24) hour days commencing at midnight (00:00) which excludes Saturdays and Sundays, statutory holidays and any recognised annual building holiday period. WORKS: The works described in general terms in the contract data, detailed in the contract documents, ordered in contract instructions and including the contractor's and n/s subcontractors' temporary works. Works includes materials and goods and those supplied free or otherwise by the employer to the contractor and exclude work or installations to be executed by direct contractors. WORKS COMPLETION: The stage of completion where the work on the works completion list has been completed as certified by the principal agent
B63: OBJECTIVE AND PREPARATION
B65: A2.0 OFFER, ACCEPTANCE AND PERFORMANCE
B67: Clause 2.0
B69: Fixed:_____ Value Related:_______ Time Related:______ | C69: Item
B71: A3.0 DOCUMENTS
B73: Clause 3.0
B75: 3.2 The contractor shall provide 32.1 A construction guarantee [14.3-4] where so elected in the contract data.
B77: Clause 3.7 is amended by the addition of the following:
B79: “The contractor shall keep a copy of all drawings, schedules, unpriced bills of quantities/lump sum document, contract instructions, a copy of JBCC SERIES 2000 Edition 5.0 (Reprint) (Code 2101) July 2007, minutes of site and other meetings, health and safety files as specified in the scope of work, risk register, claims and variation order register, labour records and subcontractors contracts on the site to which the employer, principal agent and agents shall have access at all times. The employer has the right to call for such further information from the contractor it deems necessary in the event it carries out any investigation or audit into potential fraud, corruption, fronting, health and safety incidents or verifying information the contractor has to supply to the employer in terms of this agreement. The Contractor shall ensure a similar right for the Employer with its subcontractors.
B81: Clause 3.10 is amended by replacing the second reference to "principal agent" with the word "employer"
B83: Fixed:______Value Related:________Time Related_______ | C83: Item
B85: A4.0 DESIGN RESPONSIBILITY
B87: Clause 4.0
B89: Clause 4.3 is amended by replacing it with the following: | C89: Item
B91: No clause | C91: Item
B93: Fixed_______ Value Related______Time Related________ | C93: Item
B95: A5.0 EMPLOYER'S AGENTS
B97: Clause 5.0
B99: Clause 5.1.The employer shall appoint agents as stated in the contract data and may appoint further agents with the contractor being informed thereof.
B101: Fixed_______Value Related_______Time Related_______ | C101: Item
B103: A6.0 CONTRACTOR'S SITE REPRESENTATIVE
B105: Clause 6.0
B107: Fixed_______Value Related_______Time Related______ | C107: Item
B109: A7.0 COMPLIANCE WITH LAWS AND REGULATIONS
B111: Clause 7.0
B113: Note: A separate clause has been included in Section C: Specific Preliminaries of the bills of quantities for the contractor to have the opportunity to price for all the requirements of the Occupational Health and Safety Act, Construction Regulations and Health and Safety Specification
B115: Fixed_____ Value Related_______Time Related______ | C115: Item
B117: A8.0 WORKS RISK
B119: Clause 8.0
B121: Fixed______ Value Related______ Time Related_____ | C121: Item
B123: A9.0 INDEMINITIES
B125: Clause 9.0
B127: Fixed_______Value Related_______Time Related_______ | C127: Item
B129: A1 GENERAL INSURANCES
B131: Clause 1
B133: 10.1 The following general insurances are required to be effected in the joint names of the parties in terms of this agreement:
B135: 10.1.1 Contract works insurance which shall include the contractor's subcontractors and the full value of materials and goods supplied by the employer to the contractor 10.1.2 Supplementary insurance for the works in respect of civil commotion, riot and strike. 10.1.3 Public liability insurance generally covering accidental injury or death of a person and accidental loss or damage to material property.
B137: Clause 1 is amended by the addition of the following clauses:
B139: 10.5 Damage to the Works
B141: (a) Without in any way limiting the contractor's obligations in terms of the contract, the contractor shall bear the full risk of damage to and/or destruction of the works by whatever cause during construction of the works and hereby indemnifies and holds harmless the employer against any such damage. The contractor shall take such precautions and security measures and other steps for the protection and security of the works as the contractor may deem necessary.
B143: (b) The contractor shall at all times proceed immediately to remove or dispose of any debris arising from the damage to or destruction of the works and to rebuild, restore, replace and/or repair the works
B145: c). The contractor to include for public liability cover
B147: (d) The contractor shall, if requested to do so, reinstate any damage or destroyed portions of the works and the costs of such reinstatement shall be measured and valued in terms of 32.0 hereof
B149: 10.6 Injury to Persons or loss of or damage to Properties
B151: (a) The contractor shall be liable for and hereby indemnifies the employer against any liability, loss, claim or proceeding whether arising in common law or by statue, consequent upon personal injuries to or death of any person whomsoever arising out of or in the course of or caused by the execution of the works unless due to any act or negligence of any person for whose actions the employer is legally liable
B153: (b) The contractor shall, upon receiving a contract instruction from the principal agent, cause the same to be made good in a perfect and workmanlike manner at his own cost and in default thereof the employer shall be entitled to cause it to be made good and to recover the cost thereof from the contractor or to deduct the same from amounts due to the contractor.
B155: (c) The contractor shall be responsible for the protection and safety of such portions of the premises placed under his control by the employer for the purpose of executing the works until the issue of the certificate of practical completion.
B157: (d)Where the execution of the works involves the risk of removal of or interference with support to adjoining properties including land or structures or any structures to be altered or added to, the contractor shall obtain adequate insurance and will remain adequately insured or insured to the specific limit stated in the contract against the death of or injury to persons or damage to such property consequent on such removal or interference with the support until such portion of the works has been completed.
B159: (e) The contractor shall at all times proceed immediately at his own cost to remove or dispose of any debris and to rebuild, restore, replace and/or repair such property and to execute the works.
B161: 10.7 High risk insurance
B163: In the event of the project being executed in a geological area classified as a "High Risk Area", that is an area which is subject to highly unstable subsurface conditions that might result in catastrophic ground movement evident by sinkhole or doline formation the following will apply:
B165: 10.7.1 Damage to the works
B167: The contractor shall, from the commencement date of the works until the date of the certificate of practical completion bear the full risk of and hereby indemnifies and holds harmless the employer against any damage to and/or destruction of the works consequent upon a catastrophic ground movement as mentioned above. The contractor shall take such precautions and security measures and other steps for the protection of the works as he may deem necessary. When so instructed to do so by the principal agent, the contractor shall proceed immediately to remove and/or dispose of any debris arising from damage to or destruction of the works and to rebuild, restore, replace and/or repair the works, at the contractor's own costs.
B169: 10.7.2 Injury to persons or loss of or damage to property The contractor shall be liable for and hereby indemnifies and holds harmless the employer against any liability, loss, claim or proceeding arising at any time during the period of the contract whether arising in common law or by statue, consequent upon personal injuries to or the death of any person whomsoever resulting from, arising out of or caused by a catastrophic ground movement as mentioned above. The contractor shall be liable for and hereby indemnifies the employer against any and all liability, loss, claim or proceeding consequent upon loss of or damage to any moveable or immovable or personal property or property contiguous to the site, whether belonging to or under the control of the employer or any other body or person whomsoever arising out of or caused by a catastrophic ground movement, as mentioned above, which occured during the period of the contract.
B171: 10.7.3 It is the responsibility of the contractor to ensure that he has adequate insurance to cover his risk and liability as mentioned in 10.7.1 and 10.7.2. Without limiting the contractor's obligations in terms of the contract, the contractor shall, within twenty-one (21) calendar days of the commencement date but before commencement of the works, submit to the employer proof of such insurance policy, if requested to do so
B173: 10.7.4 The employer shall be entitled to recover any and all losses and/or damages of whatever nature suffered or incurred consequent upon the contractor's default of his obligations as set out in 10.7.1; 10.7.2 and 10.7.3. Such losses or damages may be recovered from the contractor or by deducting the same from any amounts still due under this contract or under any other contract presently or hereafter existing between the employer and the contractor and for this purpose all these contracts shall be considered one indivisible whole.
B175: Fixed________Related______Time Related_____ | C175: Item
B177: A11.0 SPECIAL INSURANCES
B179: Clause 11.0
B181: Fixed_______Value Related______Time Related______ | C181: Item
B183: A12.0 EFFECTING INSURANCES
B185: Clause 12.0
B187: Fixed_______Value Related______Time Related______ | C187: Item
B189: A13.0 ASSIGNMENT
B191: Clause 13.0
B193: Fixed_______Value Related______Time Related______ | C193: Item
B195: A14.0 SECURITY
B197: Clause 14.0
B199: 14.2 No clause 14.3 Where security as a variable construction guarantee has been chosen the following shall apply: 14.3.1 The contractor shall provide the employer with a variable construction guarantee initially equal in value to ten per cent (10%) of the contract sum. 14.3.2 The variable construction guarantee shall come into force, be administered and expire in terms of the JBCC Construction Guarantee form. 14.3.3 The employer shall return the variable construction guarantee to the contractor within fourteen (14) calendar days of its expiring.
B201: 14.3.4 Where the employer has a right of recovery against the contractor [33.0], the employer may issue a written demand in terms of the variable construction guarantee. 14.4 Where security as a fixed construction guarantee and payment reduction of the value certified has been chosen the following shall apply: 14.4.1 The contractor shall provide a fixed construction guarantee to the employer equal in value to five per cent (5%) of the contract sum. Clause 14.4.1 is deemed to be amended by the addition of the following below sentence. No interest will be paid on such amount withheld. 14.4.2 The fixed construction guarantee shall come into force, be administered and expire in terms of the JBCC Construction Guarantee form. 14.4.3 The employer shall return the fixed construction guarantee to the contractor within fourteen (14) calendar days of its expiring. 14.4.4 The payment reduction to the value certified in a payment certificate shall be made [31.8, 34.8] 14.4.5 Where the employer has a right of recovery against the contractor [33.0], the employer may issue a written demand in terms of the fixed construction guarantee or may recover from the payment reduction [33.4] or both 14.5 Where security as an advance payment guarantee is to be provided by the contractor: 14.5.1 The guaranteed amount shall be equal in value to the cash advance requirement stated in the accepted tender, and 14.5.2 Such guarantee shall come into force, be administered and expire in terms of the JBCC Advance Payment Guarantee form, and 14.5.3 The employer shall return such guarantee to the contractor within fourteen (14) calendar days of its expiring. 14.6 Payments made by the guarantor to the employer in terms of a construction guarantee or an advance payment guarantee shall not prejudice the rights of the employer or contractor 14.7 Should the contractor fail to provide the security [14.1] the employer, in his sole discretion, may either: 14.7.1 Hand over the site to the contractor and withhold payment from the contractor until the amount withheld is equal to ten per cent (10%) of the contract sum. Such amount shall be reduced to two per cent (2%) of the contract sum on the achievement of practical completion [24.0] and to zero per cent (0%) in the final payment certificate [34.8], or 14.7.2 Terminate this agreement [36.1.1] 14.8 A security held by the employer [14.3-5] shall be for the due fulfilment of the contractor's liability only and the employer hereby waives all common law rights to recover from or set-off against such security.
B203: Fixed_______Value Related______Time Related______ | C203: Item
B205: EXECUTION
B207: A15.0 PREPARATION FOR AND EXECUTION OF THE WORKS
B209: Clause 15.0
B211: Clause 15.1.1 is amended by replacing it with:
B213: The security selected in terms of 14.0
B215: 15.2 The employer shall: 15.2.1 Give possession of the site to the contractor on the date stated in the contract data.
B217: A16.0 SITE AND ACCESS
B219: Clause 16.0
B221: Fixed_______Value Related______Time Related________ | C221: Item
B223: A17.0 CONTRACT INSTRUCTIONS
B225: Clause 17.0
B227: 17.1 The principal agent may issue contract instructions to the contractor regarding: 17.1.6 Provision and testing of samples of materials and goods, specimens of finishes and assemblies of elements of the works. 17.1.14.1 Prime cost amounts and the purchase of materials and goods included therein. 17.1.15 Budgetary allowances and work executed by the contractor there under. 17.1.16 Contingency and other monetary provisions included in the contract sum
B229: Fixed________Value Related_______Time Related________ | C229: Item
B231: A18.0 SETTING OUT OF THE WORKS
B233: Clause 18.0
B235: Fixed_______Value Related_______Time Related_______ | C235: Item
B237: TEMPORARY WORKS AND PLANT
B239: Clause 19.0
B241: Fixed_______Value Related_________Time Related_______ | C241: Item
B243: A2 NOMINATED SUB-CONTRACTORS
B245: Clause 2
B247: Clause 20.1.3 is amended by replacing it with the following:
B249: No Clause
B251: Note: See item B9.1 hereinafter for adjustment of attendance on nominated subcontractors executing work allowed for under provisional sums
B253: Fixed _______Value Related _______Time Related_______ | C253: Item
B255: A21.0 SELECTED SUBCONTRACTORS
B257: Clause 21.0
B259: Clause 21 is amended by replacing it with:
B261: No clause
B263: Fixed_______Value Related_________Time Related_______ | C263: Item
B265: A22.0 EMPLOYERS DIRECT CONTRACTORS
B267: Clause 22.0
B269: Fixed______Value Related_______Time Related________ | C269: Item
B271: A23.0 CONTRACTOR'S DOMESTIC SUBCONTRACTORS
B273: Clause 23.0
B275: Fixed________Value Related_______Time Related_______ | C275: Item
B277: COMPLETION
B279: A24.0 PRACTICAL COMPLETION
B281: Clause 24.0
B283: Fixed_______Value Related_______Time Related_________ | C283: Item
B285: A25.0 WORKS COMPLETION
B287: Clause 25.0
B289: Fixed_______Value Related_______Time Related_________ | C289: Item
B291: A26.0 FINAL COMPLETION
B293: Clause 26.0
B295: Fixed_______Value Related_______Time Related_______ | C295: Item
B297: A27.0 LATENT DEFECTS LIABILITY PERIOD
B299: Clause 27.0 | C299: Item
B301: Fixed_______Value Related_______Time Related_______ | C301: Item
B303: A28.0 SECTIONAL COMPLETION
B305: Clause 28.0 | C305: Item
B307: The possibility of sectionalised completion exists in compiling the bid return
B309: Fixed_____Value Related______Time Related__________ | C309: Item
B311: A29.0 REVISION OF DATE FOR PRACTICAL COMPLETION
B313: Clause 29.0
B315: Clause 29.2.5 is amended by replacing it with: | C315: Item
B317: 29.2.5 Late acceptance by the principal agent of a design undertaken by a selected subcontractor where the contractor's obligations [4.3] have been met
B319: Fixed______Value Related_______Time Related________ | C319: Item
B321: A3 PENALTY FOR LATE OR NON-COMPLETION
B323: Clause 3 One Cent (1) per One Hundred Rands (R100) per calender day
B325: Fixed_______Value Related_______Time Related_______ | C325: Item
B327: PAYMENT
B329: A31.0 INTERIM PAYMENT TO THE CONTRACTOR
B331: Clause 31.8 is amended by replacing it with the following two alternative clauses:
B333: Alternative A
B335: 31.8(A).1 Ninety-five per cent (95%) of such value in interim payment certificates issued up to the date of practical completion
B337: 31.8(A).2 Ninety-seven per cent (97%) of such value in interim payment certificates issued on the date of practical completion and up to but excluding the date of final completion
B339: 31.8(A).3 Ninety-nine per cent (99%) of such value in interim payment certificates issued on the date of final completion and up to but excluding the final payment certificate in terms of 34.6
B341: 31.8(A).4 One hundred per cent (100%) of such value in the final payment certificate in terms of 34.6 except where the amount certified is in favour of the employer. In such an event the payment reduction shall remain at the adjustment level applicable to the final payment certificate.
B343: Alternative B
B345: 31.8(B) Where security as a payment reduction in terms of 14.7 has been selected, the value of the works in terms of 31.4.1 and materials and goods in terms of 31.4.2 shall be certified in full. The value certified shall be subject to the following percentage adjustments:
B347: 31.8(B).1 Ninety per cent (90%) of such value in interim payment certificates issued up to the date of practical completion
B349: 31.8(B).2 Ninety-seven per cent (97%) of such value in interim payment certificates issued on the date of practical completion and up to but excluding the date of final completion
B351: 31.8(B).3 Ninety-nine per cent (99%) of such value in interim payment certificates issued on the date of final completion and up to but excluding the final payment certificate in terms of 34.6
B353: 31.8(B).4 One hundred per cent (100%) of such value in the final payment certificate in terms of 34.6 except where the amount certified is in favour of the employer. In such an event the payment reduction shall remain at the adjustment level applicable to the final payment certificate
B355: Clause 31.0
B357: Fixed_____Value Related______Time Related_______ | C357: Item
B359: A32.0 ADJUSTMENT TO THE CONTRACT VALUE
B361: Clause 32.0
B363: Clauses 32.5.1, 32.5.4 and 32.5.7 are amended by the addition of the following at the end of the sentence:
B365: due to no fault of the contractor
B367: Fixed______Value Related_______Time Related________ | C367: Item
B369: A33.0 RECOVERY OF EXPENSE AND LOSS
B371: Clause 34.0
B373: Fixed______Value Related _______Time Related_______ | C373: Item
B375: A34.0 FINAL ACCOUNT AND FINAL PAYMENT
B377: Clause 34.0
B379: Clause 34.1 is amended by removing "#" next to 34.1
B381: Clause 34.2 is amended by inserting "#" next to 34.2
B383: Clause 34.8 is amended by deleting the words "where security as a fixed construction guarantee in terms of 14.4 has been selected or where payment reduction has been applied in terms of 14.7.1"
B385: Clause 34.13 is amended by replacing "seven (7) calender days" with "twenty-one (21) calendar days" and deleting the words "subject to the employer giving the contractor a tax invoice for the amount due"
B387: Fixed______Value Related______Time Related________ | C387: Item
B389: A35.0 PAYMENT TO OTHER PARTIES
B391: Clause 35.0
B393: Fixed_____Value Related ______Time Related_______ | C393: Item
B395: CANCELLATION
B397: A36.0 CANCELLATION BY EMPLOYER - CONTRACTOR'S DEFAULT
... 3865 more rows
